Cogmind - Beta 13 @@@ ROGUE MODE // 2024.04.04 @ 14:42:28 Player: Archimato Result: Destroyed by B-36 Bruiser with Hammer Performance ------------- Evolutions (1) 500 Regions Visited (2) 400 Robots Destroyed (14) 70 Value Destroyed (326) 326 Prototype IDs (0) 0 Alien Tech Used (0) 0 Bonus (0) 0 TOTAL SCORE: 1296 Bonus ------- None Cogmind --------- Core Integrity 0/400 Matter 291/300 Energy 100/100 System Corruption 0% Temperature Cool (0) Movement Core (200) Ox3 Location -9/Materials Parts ------- > --- POWER (1) -------- (None) > --- PROPULSION (2) --- (None) > --- UTILITY (3) ------ Medium Storage Unit > --- WEAPON (3) ------- (None) > --- INVENTORY (10) --- Light Ion Engine Light Ion Engine Aluminum Leg Compact Wheel Peak State ------------ > --- POWER ------------ Light Nuclear Core > --- PROPULSION ------- Aluminum Leg Aluminum Leg > --- UTILITY ---------- Medium Storage Unit Sensor Array Light Armor Plating > --- WEAPON ----------- Assault Rifle Light Assault Rifle Light Cannon > --- INVENTORY -------- Light Ion Engine Light Ion Engine Wheel Compact Wheel [Rating: 11] Favorites ----------- Power Light Nuclear Core Engine Ion Engine Power Core Light Nuclear Core Propulsion Aluminum Leg Leg Aluminum Leg Wheel Wheel Utility Small Storage Unit Device Sensor Array Storage Small Storage Unit Protection Light Armor Plating Weapon Assault Rifle Energy Gun Small Laser Ballistic Gun Assault Rifle Ballistic Cannon Light Cannon Build | -11 -10 -9 ------- Run | Yrd Mat Mat Slots Evolved 2 | . . 2 Power . | . . . Propulsion . | . . . Utility 1 | . . 1 Weapon 1 | . . 1 Parts Attached 17 | 6 6 5 Power 2 | 1 1 . Engine 1 | 1 . . Core 1 | . 1 . Reactor . | . . . Propulsion 5 | 2 2 1 Treads . | . . . Leg 4 | 2 2 . Wheel 1 | . . 1 Hover . | . . . Flight . | . . . Utility 4 | 1 1 2 Device 1 | . . 1 Storage 2 | 1 . 1 Processor . | . . . Hackware . | . . . Protection 1 | . 1 . Artifact . | . . . Weapon 6 | 2 2 2 Energy Gun 2 | 1 . 1 Energy Cannon . | . . . Ballistic Gun 3 | 1 2 . Ballistic Cannon 1 | . . 1 Launcher . | . . . Special Weapon . | . . . Impact Weapon . | . . . Slashing Weapon . | . . . Piercing Weapon . | . . . Special Melee Weapon . | . . . Unidentified Prototypes . | . . . Parts Lost 12 | . 2 10 Power 1 | . . 1 Propulsion 4 | . 1 3 Utility 2 | . . 2 Weapon 5 | . 1 4 Highest Loss Streak 9 | . 2 9 To Critical Strikes . | . . . Average Slot Usage (%) 85 | . 89 80 Engine 3 | . 6 . Core 8 | . 7 8 Leg 22 | . 26 16 Device 3 | . . 8 Storage 12 | . 14 11 Protection 6 | . 5 8 Energy Gun 4 | . 5 1 Ballistic Gun 20 | . 22 16 Ballistic Cannon 3 | . . 8 Naked Turns . | . . . Heaviest Build 25 | 13 17 25 Greatest Support 20 | 20 20 20 Greatest Overweight (x) 3 | 1 1 3 Average Overweight (x) . | . . . Largest Inventory Capacity 10 | 8 8 10 Average Capacity 8 | 7 8 9 Most Carried 8 | 6 8 7 Average Carried 4 | 3 5 4 Final Capacity 10 | 8 8 10 Final Carried 6 | 4 6 4 Class Distribution -------------------- 60% | Mutant 23% | Scavenger-Tank 16% | Scavenger-Mutant Dominant Class ---------------- Mutant | -10/Materials Scavenger-Tank | -9/Materials Resources | -11 -10 -9 ----------- Run | Yrd Mat Mat Matter Collected 482 | 242 136 104 Remotely . | . . . Salvage Created 427 | . 208 219 Parts 33 | . 14 19 Haulers Intercepted . | . . . Recyclers Shooed 1 | . 1 . Parts Field Recycled . | . . . Retrieved Matter . | . . . Parts Self-Destructed . | . . . Prevented . | . . . Kills | -11 -10 -9 ------- Run | Yrd Mat Mat Combat Hostiles Destroyed 11 | . 4 7 Guns 10 | . 4 6 Cannons 1 | . . 1 Classes Destroyed 5 | . 4 1 Worker 1 | . 1 . Builder 1 | . . 1 Watcher 1 | . 1 . Swarmer 4 | . 1 3 Grunt 7 | . 3 4 Best Kill Streak 6 | . 2 6 Combat Bots Only 5 | . 2 5 Max Kills in Single Turn 1 | . 1 1 Gunslinging . | . . . Exploded . | . . . Melee . | . . . Uniques/NPCs Destroyed . | . . . Combat | -11 -10 -9 -------- Run | Yrd Mat Mat Hostile Shots Fired 206 | . 57 149 Missed 49 | . 13 36 Damage Taken 1717 | . 526 1191 Core 543 | . 129 414 Absorbed by Shields . | . . . Core Remaining (%) 74 | 100 48 . Volleys Fired 58 | . 24 34 Largest 3 | . 2 3 Hottest 75 | . 60 75 Shots Fired 103 | . 47 56 Gun 90 | . 47 43 Cannon 13 | . . 13 Launcher . | . . . Special . | . . . Kinetic 68 | . 31 37 Thermal 35 | . 16 19 Explosive . | . . . Electromagnetic . | . . . Robot Hit Streak 19 | . 19 6 Robot Miss Streak 6 | . 2 6 Penetration Max . | . . . Secondary Targets 1 | . 1 . Max Gunslinging Chain 1 | . 1 . Shots Hit Robots 62 | . 35 27 Core Hits 26 | . 12 14 Critical Kills . | . . . Critical Parts Destroyed . | . . . Critical Strikes . | . . . Melee Attacks . | . . . Impact . | . . . Slashing . | . . . Piercing . | . . . Sneak Attacks . | . . . Combat Hostiles . | . . . Follow-up Attacks . | . . . Damage Inflicted 813 | . 442 371 Guns 728 | . 431 297 Cannons 69 | . . 69 Explosions . | . . . Melee . | . . . Ramming 16 | . 11 5 Kinetic 453 | . 285 168 Thermal 344 | . 146 198 Explosive . | . . . Electromagnetic . | . . . Impact . | . . . Slashing . | . . . Piercing . | . . . Highest Corruption . | . . . Average Corruption . | . . . Corruption Purged . | . . . Corruption Blocked . | . . . Overload Shots . | . . . Overflow Damage . | . . . Projectiles . | . . . Explosions . | . . . Melee . | . . . Knockbacks 1 | . . 1 Impact . | . . . Kinetic 1 | . . 1 Secondary . | . . . Self-Inflicted Damage 2 | . . 2 Shots . | . . . Rammed 1 | . . 1 Targets Rammed 3 | . 2 1 Kicked 2 | . 2 . Crushed . | . . . Highest Temperature 233 | . 168 233 Average Temperature 94 | . 74 115 Received Heat Transfer 522 | . 216 306 Effects 1 | . . 1 Energy Bleed 1 | . . 1 Siege Activations . | . . . Robots Corrupted . | . . . Combat Hostiles . | . . . Parts Fried . | . . . Impact Corruptions . | . . . Robots Melted . | . . . Combat Hostiles . | . . . Parts Melted 2 | . . 2 Heat Transferred 775 | . 325 450 Parts Sabotaged . | . . . Parts Stolen . | . . . Parts Stripped . | . . . Power Chain Reactions . | . . . Alert | -11 -10 -9 ------- Run | Yrd Mat Mat Peak Influence 175 | . 175 135 Initial 5 | . . 5 Average 58 | . 86 26 Maximum Alert Level . | . . . Low Security (%) 100 | 100 100 100 Level 1 . | . . . Level 2 . | . . . Level 3 . | . . . Level 4 . | . . . Level 5 . | . . . High Security . | . . . Max Security . | . . . Squads Dispatched 4 | . 2 2 Investigation 1 | . 1 . Extermination . | . . . Reinforcement 3 | . 1 2 Assault . | . . . Garrison . | . . . Intercept . | . . . Searches Triggered . | . . . Construction Impeded . | . . . Haulers Reinforced . | . . . Active Scanning Responses . | . . . Cargo Convoy Interrupts . | . . . Stealth | -11 -10 -9 --------- Run | Yrd Mat Mat Distress Signals 3 | . 1 2 Communications Jammed . | . . . Distress Signals . | . . . Times Spotted 27 | . 12 15 Peak Tracking Total 9 | . 5 9 Tactical Retreats 2 | . 1 1 Traps | -11 -10 -9 ------- Run | Yrd Mat Mat Traps Triggered 2 | . 2 . Indirectly . | . . . Trap Hack Attempts . | . . . Triggered . | . . . Disarmed . | . . . Reprogrammed . | . . . Reused . | . . . Traps Extracted . | . . . Installed . | . . . Triggered . | . . . Machines | -11 -10 -9 ---------- Run | Yrd Mat Mat Machines Disabled . | . . . Max in Single Turn . | . . . Machines Repaired . | . . . Machines Dismantled . | . . . Machines Sabotaged . | . . . Overloaded Fab Kills . | . . . Hacking | -11 -10 -9 --------- Run | Yrd Mat Mat Machines Accessed 6 | . 5 1 Terminals 4 | . 4 . Fabricators . | . . . Repair Stations 1 | . . 1 Recycling Units 1 | . 1 . Scanalyzers . | . . . Garrison Access . | . . . Total Hacks 13 | . 12 1 Successful 6 | . 6 . Failed 7 | . 6 1 Catastrophic 1 | . . 1 Database Lockouts . | . . . Manual . | . . . Terminals 10 | . 10 . Fabricators . | . . . Repair Stations 1 | . . 1 Recycling Units 2 | . 2 . Scanalyzers . | . . . Garrison Access . | . . . Terminal Hacks 4 | . 4 . Emergency Access Points 1 | . 1 . Alert Level 1 | . 1 . Hauler Manifests 1 | . 1 . Zone Layout 1 | . 1 . Fabricator Hacks . | . . . Repair Station Hacks . | . . . Recycling Unit Hacks 2 | . 2 . Report Inventory 1 | . 1 . Retrieve Components 1 | . 1 . Scanalyzer . | . . . Garrison Access Hacks . | . . . Unauthorized Hacks . | . . . Terminals . | . . . Fabricators . | . . . Repair Stations . | . . . Recycling Units . | . . . Scanalyzers . | . . . Garrison Access . | . . . Data Cores Recovered . | . . . Used . | . . . Hacking Detections 5 | . 4 1 Full Trace Events . | . . . Feedback Events . | . . . Feedback Blocked . | . . . Robot Schematics Acquired . | . . . Robots Built . | . . . Authchips . | . . . Time . | . . . Total Robot Build Rating . | . . . Part Schematics Acquired . | . . . Parts Built . | . . . Authchips . | . . . Time . | . . . Total Part Build Rating . | . . . Parts Repaired . | . . . Time . | . . . Parts Recycled . | . . . Recycled Matter . | . . . Retrieved Matter . | . . . Retrieved Components 4 | . 4 . Parts Scanalyzed . | . . . Part Schematics Acquired . | . . . Parts Damaged . | . . . Bothacking | -11 -10 -9 ------------ Run | Yrd Mat Mat Used RIF Installer . | . . . Robots Hacked . | . . . Non-combat . | . . . Combat . | . . . Robot Hacks Applied . | . . . Relay Couplers Released . | . . . Fabnet Peak Effective % . | . . . Robots Rewired . | . . . Allies Hacked . | . . . Hacks Repelled . | . . . Allies | -11 -10 -9 -------- Run | Yrd Mat Mat Total Allies . | . . . Largest Group . | . . . Highest-Rated Group . | . . . Highest-Rated Ally . | . . . Total Orders . | . . . Ally Attacks . | . . . Total Damage . | . . . Kills . | . . . Allies Corrupted . | . . . Allies Melted . | . . . Intel | -11 -10 -9 ------- Run | Yrd Mat Mat Robot Analysis Total . | . . . Derelict Logs Recovered . | . . . Drone Launches . | . . . Drone Recoveries . | . . . Exploration | -11 -10 -9 ------------- Run | Yrd Mat Mat Turns Passed 789 | 74 447 268 Spaces Moved 401 | 51 262 88 Core 13 | 9 . 4 Treads . | . . . Legs 381 | 42 262 77 Wheels 7 | . . 7 Hover . | . . . Flight . | . . . Fastest Speed 50 | 50 120 80 Average Speed 134 | 115 122 178 Slowest Speed 200 | 120 190 200 Overloaded Moves . | . . . Propulsion Burnouts . | . . . Robots Hopped . | . . . Cave-ins Triggered . | . . . Exploration Rate (%) 17 | 3 37 13 Regions Visited 2 Branch Regions . Pre-discovered Areas . | . . . Known Exits Taken . | . . . Unknown Exits Taken 2 | 1 1 . Scrap Searched . | . . . Spaces Dug . | . . . Terrain Destroyed . | . . . Melee . | . . . Projectile . | . . . AOE . | . . . Terrain Rammed . | . . . Walls Destroyed . | . . . Machines Disabled . | . . . Actions | -11 -10 -9 --------- Run | Yrd Mat Mat Total 560 | 66 340 154 Wait 55 | . 33 22 Move 399 | 50 261 88 Hop . | . . . Pick Up 22 | 10 9 3 Fast Attach 1 | . 1 . Attach 13 | 6 3 4 Detach . | . . . Swap 3 | . 2 1 Drop 6 | . 5 1 Fire 58 | . 24 34 Melee . | . . . Ram 1 | . . 1 Kick 2 | . 2 . Crush . | . . . Escape Stasis . | . . . Rewire . | . . . Trap . | . . . Miscellaneous . | . . . Route ------- -11/Scrapyard -10/Materials -9/Materials History --------- Turn | Location | Event 14 | -11/Scrapyard | Discovered new exit (range 16) 75 | -11/Scrapyard | Entered Materials 330 | -10/Materials | Build established: Mutant 471 | -10/Materials | Core integrity fell below 50% 476 | -10/Materials | Discovered new exit (range 14) 522 | -10/Materials | Entered another Materials area 522 | -9/Materials | Evolved 2 slots: Utility x1, Weapon x1 743 | -9/Materials | Core integrity fell below 50% 772 | -9/Materials | Core integrity fell below 20% 776 | -9/Materials | Lost 9 parts (1p3n2u3w) 790 | -9/Materials | Destroyed by B-36 Bruiser with Hammer Last Messages --------------- Acquired Sml. Laser. R-06 Scavenger collects Aluminum Leg. Wheel destroyed. S-10 Pest destroyed. R-06 Scavenger collects Lgt. Assault Rifle. Destroyed Flight Unit. S-10 Pest destroyed. G-47 Trooper destroyed. U-05 Engineer destroyed. R-06 Scavenger collects Wheel. R-06 Scavenger collects Heat Sink. Heat Sink melted. Aluminum Leg melted. G-34 Mercenary destroyed. S-10 Pest destroyed. Acquired 19 matter. Acquired 12 matter. Knocked back. K-01 Serf collects debris. Sml. Laser destroyed. Map ----- +----------------------------------------------------+ | ??#! #??????????????????????????????????????? | | ??#! ########???????????????????????????????? | | ??#! # #???????????????????????????????? | | ??##! # """ #???????????????????????????????? | | ???#### # """ #???????????????????????????????? | | ??????# # """ #???????????????????????????????? | | ??????# # #???????????????????????????????? | | ??????# # """ #???????????????????????????????? | | ??????# + """ #???????????????????????????????? | | ####### # """ #???????????????????????????????? | | !# # #???????????????????????????????? | | " # # """ #???????????????????????????????? | | """ # # """ #???????????????????????????????? | | " """ # # """ #???""??????????????????????????? | | " """ # # #???""??????????????????????????? | | + #####?##??? ??????????????????????????? | | # #?????????##+#####?????????????????????? | | # #?????????# +?????????????????????? | | ####### ##????????# ^ #?????????????????????? | | ###### ########## #?????????????????????? | | o | #?????????### ????????? | | T !*##+######## ????????? | | =!%# %u % k ??????????? | | ### ###### %=[# #???????????????? | | ??###/###????# =%%#[ #???????????????? | | ????? ???????+ a /@* #???????????????? | | ????? ???????##### *#bg #???????????????? | | ??????= ???????????# # #???????????????? | | ?????= ???????????# # #???????????????? | | ???? ???????????# # #???????????????? | | ????#####???????????# # + ??????????????? | | ???????????????????? ########## ????????????? | | ??????????????????? #?????????? ???????????? | | ?????????????????? #???????????+#???????????? | | ??????????????????#######???????????? ???????????? | | ?????????????????????????????????????????????????? | | ?????????????????????????????????????????????????? | | ?????????????????????????????????????????????????? | | ?????????????????????????????????????????????????? | | ?????????????????????????????????????????????????? | | ?????????????????????????????????????????????????? | | ?????????????????????????????????????????????????? | | ?????????????????????????????????????????????????? | | ?????????????????????????????????????????????????? | | ?????????????????????????????????????????????????? | | ?????????????????????????????????????????????????? | | ?????????????????????????????????????????????????? | | ?????????????????????????????????????????????????? | | ?????????????????????????????????????????????????? | | ?????????????????????????????????????????????????? | +----------------------------------------------------+ Best States ------------- Heat Dissipation 28 Energy Generation 14 Energy Capacity 250 Matter Stores 300 Matter Capacity 300 Sight Range 16 Robot Scan Range 14 Terrain Scan Density 10 Armor Coverage 150 Evasion (%) 55 Item Schematics ----------------- None Robot Schematics ------------------ None Fabricated ------------ Nothing Alien Tech Used ----------------- None Achievements -------------- None Challenges ------------ None Game ------ Seed ClaymoresActuatorRigger Manual? 0 Play Time 00:13:35 Cumulative 7.2 hours Start 2024.04.04 @ 14:30:58 End 2024.04.04 @ 14:42:28 Sessions 1 Manual Loads 0 Difficulty Rogue Special Mode None Game No. 10 Rogue 10 Adventurer 0 Explorer 0 Win Type - Total 0 Types 0/0/0/0/0/0/0/0/0 Lore% 17 Gallery% 15 Achievement% 13 Wizard Run 0 Options --------- Layout 1 ASCII 0 Keyboard 0 Movement Mouse Keybinds 0 Fullscreen 1 Font 24/Smallcaps Map View 50x35 Zoom Use 0% Tactical HUD 0 Map Filters NONE Filters NONE Steam 1 RUN: dc4e5cc0-a739-4122-91c4-152ac627b8df